bitfinex/quotes_SOLUSD_20240615
["timestamp","ask_amount","ask_price","bid_price","bid_amount"]
[1718469389280,0.27469,145.62,145.61,15.2461]
[1718469389456,5.84469,145.62,145.61,2.541]
[1718469390211,0.17,145.61,145.52,11.9142]
[1718469390366,5.57,145.59,145.58,2.5414]
[1718469390691,5.57,145.59,145.58,7.6246]
[1718469391399,5.57,145.59,145.58,2.5415]
[1718469393596,5.57,145.59,145.58,7.6246]
[1718469394130,5.57,145.59,145.58,15.2492]
[1718469394486,18.06139,145.62,145.61,25.4102]
[1718469394487,0.27469,145.62,145.61,25.4102]
[1718469398982,0.27469,145.62,145.6,12.7057]
[1718469399189,0.27469,145.62,145.61,25.4102]
[1718469400083,0.27469,145.62,145.61,7.623]
[1718469400315,0.27469,145.62,145.61,25.4102]
[1718469404433,0.27469,145.62,145.61,7.623]
[1718469404595,0.27469,145.62,145.61,15.2461]
[1718469406011,0.27469,145.62,145.61,25.4102]
[1718469408024,0.27469,145.62,145.61,30.9802]
[1718469410225,0.27469,145.62,145.61,25.4102]
[1718469419244,0.27469,145.62,145.6,7.6233]
[1718469419474,12.7052,145.61,145.58,7.6243]
[1718469419646,5.57,145.61,145.59,7.624]
[1718469419848,21.09009,145.62,145.59,17.7893]
[1718469420052,13.46749,145.62,145.6,2.5411]
[1718469420269,8.38569,145.62,145.6,2.5411]
[1718469420660,5.84469,145.62,145.6,7.6234]
[1718469420968,5.84469,145.62,145.59,2.5412]
[1718469420969,31.25379,145.62,145.59,2.5412]
[1718469421175,31.25379,145.62,145.59,15.2479]
[1718469421544,23.3585,145.6,145.57,7.6248]
[1718469421750,13.1937,145.6,145.58,2.5415]
[1718469422150,8.1112,145.6,145.58,2.5415]
[1718469422350,5.57,145.6,145.58,7.6246]
[1718469422551,5.57,145.6,145.58,25.4149]
[1718469423067,8.1114,145.59,145.57,2.5417]
[1718469423282,5.57,145.58,145.56,25.4177]
[1718469423478,8.1117,145.57,145.55,2.542]
[1718469423794,5.57,145.57,145.56,2.5419]
[1718469424094,5.57,145.57,145.55,7.626]
[1718469424499,5.57,145.57,145.56,2.5419]
[1718469424951,8.2817,145.57,145.55,7.6261]
[1718469425153,5.57,145.56,145.5,5.57]
[1718469425368,5.57,145.56,145.55,2.542]
[1718469426488,5.57,145.56,145.55,7.6261]
[1718469426674,5.57,145.56,145.55,25.4206]
[1718469427277,5.57,145.57,145.56,2.5418]
[1718469428685,5.57,145.58,145.53,5.57]
[1718469428875,2.541,145.61,145.58,7.6246]
[1718469429079,8.1112,145.6,145.58,7.6243]
[1718469429290,5.57,145.6,145.58,7.6243]
[1718469429587,8.1112,145.6,145.58,2.5414]
[1718469429787,5.57,145.59,145.58,2.5414]
[1718469429992,5.57,145.59,145.58,2.5415]
[1718469430768,13.3643,145.59,145.56,22.876]
[1718469430965,8.1115,145.58,145.56,7.6252]
[1718469431387,8.1115,145.58,145.56,2.5417]
[1718469431896,5.57,145.58,145.56,15.251]
[1718469432109,8.1116,145.58,145.56,2.5417]
[1718469432391,5.57,145.57,145.56,2.5417]
[1718469432626,5.57,145.57,145.55,10.1681]
[1718469432785,5.57,145.57,145.55,15.2521]
[1718469433286,5.57,145.57,145.56,15.2514]
[1718469433470,3.85261318,145.57,145.56,7.6257]
[1718469434309,3.85261318,145.57,145.56,15.2514]
[1718469434496,3.85261318,145.57,145.56,7.6257]
[1718469435379,3.85261318,145.57,145.56,2.5419]
[1718469435577,3.85261318,145.57,145.55,25.4199]
[1718469435783,3.85261318,145.57,145.55,22.878]
[1718469435982,3.85261318,145.57,145.55,25.4199]
[1718469436207,6.39431318,145.57,145.55,5.0839]
[1718469436418,6.39431318,145.57,145.55,7.6259]
[1718469436620,3.85261318,145.57,145.55,7.6259]
[1718469437417,3.85261318,145.57,145.55,25.4203]
[1718469438007,6.39431318,145.57,145.55,7.6259]
[1718469438206,5.57,145.56,145.55,7.6259]
[1718469440932,5.57,145.56,145.55,25.4204]
[1718469441296,0.17,145.58,145.56,22.8768]
[1718469441600,0.17,145.58,145.57,2.5416]
[1718469441800,5.74,145.58,145.57,2.5416]
[1718469442194,5.74,145.58,145.56,25.4185]
[1718469442922,5.57,145.58,145.57,7.6251]
[1718469443304,5.57,145.58,145.57,15.2502]
[1718469443620,5.57,145.58,145.57,2.5417]
[1718469444044,5.57,145.58,145.57,7.6251]
[1718469444659,5.57,145.58,145.57,15.2502]
[1718469444844,5.57,145.58,145.57,7.6251]
[1718469445150,5.57,145.58,145.57,2.5417]
[1718469445533,5.57,145.58,145.57,7.6251]
[1718469445732,5.57,145.58,145.57,2.5417]
[1718469445948,5.57,145.58,145.56,25.4179]
[1718469446245,5.57,145.58,145.57,2.5417]
[1718469447052,7.6241,145.59,145.57,2.5417]
[1718469447348,5.57,145.58,145.57,2.5417]
[1718469447533,5.57,145.58,145.56,25.4179]
[1718469447728,22.8715,145.6,145.57,15.2502]
[1718469447946,5.57,145.58,145.57,15.2502]
[1718469448154,5.57,145.58,145.57,2.5417]
[1718469448528,5.57,145.58,145.56,25.418]
[1718469448729,20.8194,145.58,145.55,25.4201]
[1718469449044,45.4143,145.59,145.56,7.6255]
[1718469449246,5.57,145.58,145.56,25.4188]
[1718469449450,5.57,145.58,145.57,2.5417]
[1718469449652,5.57,145.58,145.56,25.4187]
[1718469449849,13.1946,145.58,145.56,2.5417]
[1718469450225,13.1946,145.58,145.55,22.8778]
[1718469450446,13.1946,145.58,145.55,25.4197]
[1718469450638,13.1946,145.58,145.56,2.5419]
[1718469451044,8.1115,145.58,145.56,2.5419]
[1718469451352,8.1115,145.58,145.56,7.6257]
[1718469451557,5.57,145.58,145.56,7.6257]
[1718469451758,8.1115,145.58,145.56,7.6257]
[1718469452054,8.1115,145.58,145.56,2.5419]
[1718469452846,5.57,145.58,145.56,15.2512]
[1718469453536,20.8193,145.58,145.55,25.4194]
[1718469453738,13.1946,145.58,145.56,2.5418]
[1718469453941,8.1115,145.58,145.56,2.5418]
[1718469454456,8.1115,145.58,145.55,7.6259]
[1718469454457,5.57,145.57,145.55,7.6259]
[1718469454654,5.57,145.57,145.54,17.7951]
[1718469454655,13.1953,145.57,145.54,25.4213]
[1718469454961,8.1119,145.56,145.54,2.5422]
[1718469455146,5.57,145.56,145.55,2.542]
[1718469455942,2.5418,145.57,145.55,7.6261]
[1718469456442,2.5418,145.57,145.55,2.542]
[1718469456961,25.4164,145.58,145.55,7.6261]
[1718469457740,2.5417,145.57,145.55,7.6261]
[1718469458160,25.4164,145.58,145.55,7.6261]
[1718469458658,25.4164,145.58,145.55,15.2523]
[1718469459237,25.4164,145.58,145.49,11.9142]
[1718469459238,22.5415,145.59,145.56,22.8767]
[1718469459432,2.5415,145.59,145.57,7.625]
[1718469459653,25.4128,145.6,145.57,25.4169]
[1718469459855,25.4108,145.61,145.58,15.249]
[1718469460059,28.1112,145.6,145.58,2.5414]
[1718469460236,25.57,145.6,145.58,10.166]
[1718469460432,25.57,145.6,145.58,7.6244]
[1718469460433,5.57,145.59,145.58,7.6244]
[1718469460641,5.57,145.59,145.58,2.5414]
[1718469461366,22.5412,145.6,145.58,2.5414]
[1718469461563,5.57,145.59,145.58,2.5414]
[1718469461748,5.57,145.59,145.57,25.4161]
[1718469462172,8.1114,145.59,145.57,7.6247]
[1718469463248,8.1114,145.59,145.57,2.5415]
[1718469464139,5.57,145.59,145.57,7.6249]
[1718469464340,8.1114,145.59,145.57,2.5415]
[1718469464969,20.8182,145.59,145.56,25.418]
[1718469465774,13.1941,145.59,145.57,2.5417]
[1718469466065,13.1941,145.59,145.56,22.8763]
[1718469466362,13.1941,145.59,145.56,25.418]
[1718469466981,20.8182,145.59,145.56,25.418]
[1718469468349,13.1941,145.59,145.56,25.418]
[1718469469572,20.8183,145.59,145.56,25.418]
[1718469469771,0.17,145.59,145.49,11.9142]
[1718469469940,20.8207,145.57,145.55,2.542]
[1718469470268,8.1119,145.56,145.54,2.5421]
[1718469470570,20.8215,145.56,145.53,25.4231]
[1718469470760,8.1119,145.56,145.53,22.8809]
[1718469470975,5.57,145.56,145.54,7.6264]
[1718469471662,5.57,145.56,145.55,2.542]
[1718469471973,5.57,145.57,145.56,7.6256]
[1718469472283,13.1948,145.58,145.55,7.6258]
[1718469472484,20.8195,145.58,145.55,5.0839]
[1718469472643,13.1952,145.57,145.55,2.542]
[1718469473171,7.6252,145.57,145.55,2.542]
[1718469473347,5.57,145.56,145.54,7.6263]
[1718469473553,5.57,145.56,145.55,7.6261]
[1718469474392,5.57,145.56,145.55,2.542]
[1718469474565,5.57,145.56,145.54,5.0842]
[1718469474879,5.57,145.55,145.54,2.5421]
[1718469475083,5.57,145.55,145.54,7.6266]
[1718469475784,7.6254,145.57,145.54,5.0845]
[1718469476366,7.6254,145.57,145.54,7.6266]
[1718469476570,15.2506,145.57,145.54,7.6266]
[1718469476848,2.5422,145.54,145.47,5.57]
[1718469477054,28.4493,145.55,145.52,7.6277]
[1718469477055,5.57,145.53,145.52,7.6277]
[1718469480581,5.57,145.53,145.51,5.0853]
[1718469480744,5.57,145.53,145.51,7.6282]
[1718469480949,5.57,145.52,145.51,7.6282]
[1718469481459,5.57,145.52,145.5,5.0856]
[1718469481663,5.57,145.52,145.51,7.6282]
[1718469484085,5.57,145.52,145.51,2.5427]
[1718469485470,5.57,145.52,145.5,7.6284]
[1718469485671,5.57,145.51,145.5,7.6284]
[1718469486997,5.57,145.52,145.5,5.0856]
[1718469487201,5.57,145.52,145.51,7.6282]
[1718469488297,5.57,145.52,145.51,2.5427]
[1718469488499,5.2066891,145.52,145.51,2.5427]
[1718469490074,5.2066891,145.52,145.51,7.6282]
[1718469490581,5.2066891,145.52,145.51,2.5427]
[1718469490783,7.6268,145.54,145.51,7.6281]
[1718469490997,5.57,145.53,145.52,2.5426]
[1718469491575,5.57,145.53,145.51,7.6281]
[1718469491894,5.57,145.53,145.52,2.5426]
[1718469492097,2.5419,145.56,145.54,2.5422]
[1718469492397,5.57,145.55,145.54,2.5422]
[1718469492777,5.57,145.55,145.53,7.6268]
[1718469493783,8.1121,145.55,145.53,2.5422]
[1718469495412,2.542,145.56,145.54,2.5422]
[1718469495691,2.542,145.56,145.53,5.0847]
[1718469495692,13.1959,145.56,145.53,7.627]
[1718469495898,7.6259,145.56,145.53,7.627]
[1718469496215,7.6259,145.56,145.54,2.5422]
[1718469496502,2.542,145.56,145.54,2.5422]
[1718469496918,7.6258,145.56,145.53,5.0847]
[1718469497409,15.2515,145.56,145.53,7.6269]
[1718469499310,25.4191,145.56,145.53,7.6269]
[1718469499516,2.542,145.55,145.53,7.6269]
[1718469499688,25.4191,145.56,145.53,7.6269]
[1718469500307,2.542,145.55,145.53,7.6269]
[1718469500510,25.4191,145.56,145.53,7.6269]
[1718469502087,2.5421,145.55,145.53,7.6269]
[1718469502291,2.5421,145.55,145.53,2.5422]
[1718469502910,15.2526,145.55,145.52,7.6274]
[1718469503795,20.8226,145.55,145.52,7.6274]
[1718469503992,13.1963,145.55,145.52,7.6274]
[1718469504197,7.6263,145.55,145.53,2.5424]
[1718469504411,2.542,145.55,145.53,7.6272]
[1718469505306,2.542,145.55,145.53,2.5424]
[1718469505715,28.4475,145.56,145.53,7.6272]
[1718469505918,2.542,145.55,145.53,7.6272]
[1718469506513,28.4475,145.56,145.53,7.6272]
[1718469506514,30.9895,145.56,145.53,7.6272]
[1718469507820,25.4195,145.56,145.53,7.6272]
[1718469507997,30.9895,145.56,145.53,7.6272]
[1718469508425,13.1959,145.56,145.53,5.0848]
[1718469508594,20.8217,145.56,145.53,7.627]
[1718469511220,30.9894,145.56,145.53,7.627]
[1718469511713,2.5424,145.53,145.51,2.5426]
[1718469511914,7.6274,145.53,145.51,2.5427]
[1718469512219,7.6278,145.52,145.49,7.6289]
[1718469512417,7.6278,145.52,145.5,2.5429]
[1718469512610,7.6289,145.5,145.48,2.5432]
[1718469512795,5.57,145.5,145.49,2.543]
[1718469512995,5.57,145.5,145.49,7.6292]
[1718469515320,2.5427,145.52,145.5,2.5428]
[1718469515511,5.57,145.51,145.5,7.6286]
[1718469518723,0.17,145.54,145.52,2.5425]
[1718469519019,5.57,145.53,145.52,2.5425]
[1718469519322,35.2535,145.54,145.51,7.6279]
[1718469519526,5.57,145.53,145.52,2.5425]
[1718469519729,8.1124,145.53,145.51,7.6279]
[1718469520827,5.57,145.52,145.5,7.6285]
[1718469521123,8.1126,145.52,145.5,7.6285]
[1718469521330,5.57,145.51,145.5,2.5429]
[1718469521533,5.57,145.51,145.49,7.6289]
[1718469521731,5.57,145.51,145.5,2.5429]
[1718469523517,5.57,145.51,145.5,7.6288]
[1718469529440,22.8867,145.5,145.41,6.5081]
[1718469529615,5.57,145.48,145.47,2.5434]
[1718469529815,8.1133,145.48,145.46,7.6305]
[1718469530031,5.57,145.47,145.46,2.5436]
[1718469530432,5.57,145.47,145.46,7.6309]
[1718469532126,5.57,145.48,145.47,7.6301]
[1718469532625,8.1133,145.48,145.46,2.5435]
[1718469532842,5.57,145.47,145.46,7.6308]
[1718469533251,5.57,145.47,145.46,2.5436]
[1718469534135,5.57,145.47,145.46,7.6309]
[1718469535151,8.1135,145.47,145.45,7.631]
[1718469535364,5.57,145.46,145.45,7.631]
[1718469536350,5.57,145.46,145.45,2.5437]
[1718469537665,5.57,145.46,145.45,7.6313]
[1718469539428,10.8275,145.46,145.39,5.57]
[1718469539633,5.57,145.43,145.42,2.5443]
[1718469539835,5.57,145.43,145.42,7.633]
[1718469540053,5.57,145.44,145.43,7.6321]
[1718469540362,5.57,145.44,145.43,2.5441]
[1718469540531,22.8993,145.42,145.39,7.6341]
[1718469540731,22.8993,145.42,145.36,11.9142]
[1718469540732,2.5443,145.42,145.4,7.6339]
[1718469540933,5.57,145.41,145.4,7.6339]
[1718469541855,15.3554,145.45,145.43,7.6324]
[1718469542061,5.57,145.44,145.43,7.6324]
[1718469542565,5.57,145.44,145.43,2.5441]
[1718469542861,15.3554,145.45,145.43,7.6322]
[1718469543032,7.6308,145.47,145.36,11.9142]
[1718469543033,2.5435,145.47,145.45,7.6313]
[1718469543236,5.57,145.46,145.44,2.5438]
[1718469543534,8.1136,145.46,145.44,2.5439]
[1718469543759,5.57,145.46,145.44,7.6318]
[1718469543943,5.57,145.46,145.44,7.6317]
[1718469544560,25.435,145.47,145.45,2.5438]
[1718469544768,5.57,145.46,145.45,2.5438]
[1718469545452,5.57,145.46,145.44,5.0879]
[1718469545453,5.57,145.46,145.44,7.6317]
[1718469545966,5.57,145.46,145.45,2.5438]
[1718469546170,2.5434,145.48,145.46,2.5436]
[1718469546343,2.5431,145.49,145.42,5.57]
[1718469546538,31.845,145.5,145.47,7.6303]
[1718469546775,5.57,145.48,145.47,7.6302]
[1718469547665,5.57,145.48,145.47,2.5433]
[1718469547852,5.57,145.48,145.46,7.6305]
[1718469548057,5.57,145.48,145.47,2.5434]
[1718469548253,2.5431,145.5,145.41,11.9142]
[1718469548454,7.6289,145.5,145.48,2.5432]
[1718469548659,5.57,145.49,145.48,2.5432]
[1718469548947,5.57,145.49,145.47,7.63]
[1718469549156,2.5433,145.48,145.41,11.9142]
[1718469549363,7.6134,145.47,145.45,7.6312]
[1718469549853,5.57,145.47,145.46,7.6309]
[1718469550654,5.57,145.48,145.47,2.5434]
[1718469550837,5.57,145.48,145.47,7.6303]
[1718469552787,25.4302,145.5,145.47,7.6303]
[1718469552974,5.57,145.48,145.47,7.6303]
[1718469554469,2.5431,145.49,145.47,7.6303]
[1718469554645,5.57,145.48,145.47,7.6303]
[1718469555568,25.4286,145.51,145.48,5.0865]
[1718469555889,5.57,145.5,145.49,2.5431]
[1718469556612,10.6559,145.5,145.47,5.0867]
[1718469556767,30.9999,145.5,145.47,7.63]
[1718469557198,25.4299,145.5,145.47,7.63]
[1718469557366,5.57,145.49,145.48,2.5433]
[1718469558275,5.57,145.49,145.48,7.6299]
[1718469558899,5.57,145.5,145.48,5.0866]
[1718469559100,5.57,145.5,145.48,7.6297]
[1718469559269,15.4427,145.52,145.5,7.6285]
[1718469559590,5.57,145.51,145.49,7.629]
[1718469559788,5.57,145.51,145.49,7.6291]
[1718469559997,2.5428,145.51,145.49,7.6291]
[1718469560306,8.1128,145.51,145.49,7.6291]
[1718469560696,13.1983,145.51,145.49,2.543]
[1718469560880,8.1128,145.51,145.49,7.6292]
[1718469561079,2.5429,145.5,145.48,7.6295]
[1718469561284,30.9979,145.51,145.48,7.6295]
[1718469561868,25.4279,145.51,145.48,7.6295]
[1718469562066,25.4279,145.51,145.48,5.0864]
[1718469562067,5.57,145.5,145.48,5.0864]
[1718469563987,5.57,145.49,145.47,5.0868]
[1718469564173,5.57,145.49,145.47,7.6301]
[1718469564383,5.57,145.49,145.48,2.5433]
[1718469565490,5.57,145.49,145.48,7.6299]
[1718469567668,5.57,145.49,145.48,2.5433]
[1718469568593,5.57,145.49,145.48,7.6299]
[1718469575012,5.57,145.49,145.47,7.6299]
[1718469575186,5.57,145.48,145.47,7.6299]
[1718469577997,5.57,145.49,145.48,2.5432]
[1718469578314,5.57,145.49,145.48,7.6297]
[1718469580100,0.17,145.51,145.49,2.543]
[1718469580287,0.51,145.51,145.5,2.5429]
[1718469580490,25.91,145.51,145.5,2.5429]
[1718469580695,15.6901,145.52,145.51,2.5427]
[1718469581019,41.4301,145.52,145.5,5.0856]
[1718469581220,5.57,145.51,145.5,5.0856]
[1718469581419,5.57,145.51,145.5,7.6285]
[1718469581593,14.06147251,145.55,145.52,2.5424]
[1718469581794,5.57,145.53,145.52,2.5424]
[1718469582107,25.57,145.53,145.52,2.5424]
[1718469582295,25.57,145.53,145.51,7.6279]
[1718469583116,33.1972,145.53,145.5,7.6284]
[1718469583308,33.1972,145.53,145.5,5.0856]
[1718469583508,27.6272,145.53,145.5,5.0856]
[1718469583811,18.1358,145.54,145.52,7.6274]
[1718469583812,5.57,145.54,145.52,7.6274]
[1718469583993,5.57,145.54,145.52,5.085]
[1718469584198,5.57,145.54,145.52,7.6274]
[1718469584617,15.2525,145.55,145.52,7.6274]
[1718469584814,2.5421,145.55,145.52,5.085]
[1718469585193,5.57,145.54,145.52,7.6275]
[1718469586197,8.1122,145.54,145.52,2.5425]
[1718469586393,2.5422,145.54,145.52,2.5425]
[1718469586627,5.57,145.54,145.52,7.6276]
[1718469589731,8.1122,145.54,145.52,7.6276]
[1718469589916,2.5422,145.54,145.52,7.6276]
[1718469590116,5.57,145.54,145.52,7.6276]
[1718469590356,2.5424,145.53,145.51,2.5426]
[1718469591321,8.1124,145.53,145.51,2.5426]
[1718469591531,5.57,145.53,145.51,2.5426]
[1718469591739,8.1124,145.53,145.51,2.5426]
[1718469592125,8.1126,145.52,145.49,5.0859]
[1718469592531,8.1126,145.52,145.46,17.4842]
[1718469592532,5.57,145.52,145.5,7.6286]
[1718469595851,5.57,145.51,145.49,7.6292]
[1718469597131,5.57,145.5,145.49,2.543]
[1718469597345,5.57,145.5,145.49,7.6292]
[1718469598027,5.57,145.5,145.49,2.5431]
[1718469600032,5.57,145.5,145.49,7.6293]
[1718469602258,5.57,145.51,145.49,7.6293]
[1718469602463,8.1128,145.51,145.49,2.5431]
[1718469602955,5.57,145.5,145.49,7.6293]
[1718469603160,5.57,145.5,145.49,2.5431]
[1718469603536,5.57,145.5,145.48,7.6294]
[1718469603844,5.57,145.5,145.49,2.5431]
[1718469604632,5.2563,145.49,145.46,2.5435]
[1718469604857,7.7995,145.49,145.46,2.5435]
[1718469605052,5.57,145.48,145.46,7.6306]
[1718469605537,5.57,145.48,145.47,2.5434]
[1718469605747,5.57,145.48,145.46,7.6306]
[1718469606237,5.57,145.48,145.46,2.5435]
[1718469606440,5.57,145.48,145.46,7.6307]
[1718469608172,8.1133,145.48,145.46,2.5435]
[1718469608541,5.57,145.48,145.46,2.5435]
[1718469608951,8.1133,145.48,145.46,2.5435]
[1718469609481,8.1133,145.48,145.45,7.631]
[1718469609844,13.1999,145.48,145.45,7.631]
[1718469610050,2.5434,145.47,145.45,2.5436]
[1718469610265,8.1134,145.47,145.45,2.5436]
[1718469610972,8.1134,145.47,145.44,7.6315]
[1718469611176,8.1134,145.47,145.44,5.0877]
[1718469611363,5.57,145.47,145.44,5.0877]
[1718469612959,5.57,145.47,145.45,7.6313]
[1718469613372,2.5434,145.48,145.46,2.5436]
[1718469613581,5.57,145.48,145.46,2.5436]
[1718469613753,2.5433,145.48,145.46,2.5436]
[1718469613957,25.6021,145.49,145.46,2.5436]
[1718469614159,5.57,145.48,145.46,7.6309]
[1718469614650,8.1133,145.48,145.46,2.5436]
[1718469615696,8.1133,145.48,145.45,5.0874]
[1718469615697,13.1999,145.48,145.45,7.631]
[1718469616065,8.1133,145.48,145.45,5.0874]
[1718469616467,7.6289,145.5,145.47,7.6302]
[1718469616699,8.1131,145.49,145.47,2.5433]
[1718469617395,8.1131,145.49,145.46,7.6304]
[1718469617766,13.1993,145.49,145.46,7.6304]
[1718469617961,7.6293,145.49,145.46,7.6304]
[1718469618262,13.1993,145.49,145.46,7.6304]
[1718469618656,7.6293,145.49,145.46,7.6304]
[1718469618873,8.1131,145.49,145.46,5.087]
[1718469619074,5.0858,145.51,145.45,5.57]
[1718469619271,8.1129,145.5,145.48,2.5432]
[1718469619479,13.1988,145.5,145.47,7.6299]
[1718469619670,20.8276,145.5,145.47,7.6299]
[1718469620083,28.4565,145.5,145.47,7.6299]
[1718469620280,30.9995,145.5,145.47,7.6299]
[1718469620887,2.5431,145.49,145.47,7.6299]
[1718469621082,28.4565,145.5,145.47,2.5433]
[1718469621267,2.5431,145.49,145.47,2.5433]
[1718469621473,7.6305,145.47,145.44,2.5438]
[1718469621694,20.8309,145.47,145.44,2.5438]
[1718469621875,13.2005,145.47,145.45,2.5438]
[1718469622065,8.1135,145.47,145.45,2.5438]
[1718469622764,5.74,145.46,145.38,11.9142]
[1718469623000,2.544,145.44,145.38,11.9142]
[1718469623169,5.57,145.42,145.4,2.5445]
[1718469623371,5.57,145.42,145.41,7.6335]
[1718469623691,5.57,145.47,145.41,5.57]
[1718469623875,5.57,145.47,145.45,2.5438]
[1718469624207,5.57,145.47,145.45,7.6313]
[1718469624367,8.1135,145.47,145.44,5.0877]
[1718469624570,13.2004,145.47,145.44,15.2633]
[1718469625072,8.1135,145.47,145.45,2.5438]
[1718469625269,8.1135,145.47,145.44,15.2633]
[1718469625454,13.2004,145.47,145.44,15.2633]
[1718469625885,8.1135,145.47,145.44,12.7195]
[1718469626179,8.1135,145.47,145.44,15.2633]
[1718469626361,8.1135,145.47,145.44,12.7195]
[1718469626986,5.57,145.47,145.45,7.6312]
[1718469628892,8.1135,145.47,145.45,2.5437]
[1718469629091,2.5435,145.47,145.44,12.7195]
[1718469629300,8.1134,145.48,145.45,5.0876]
[1718469629470,8.1134,145.48,145.45,7.6312]
[1718469629671,13.2,145.48,145.45,7.6312]
[1718469629870,2.5434,145.47,145.44,5.0877]
[1718469630071,31.0031,145.48,145.45,7.6313]
[1718469631013,28.4597,145.48,145.45,2.5437]
[1718469631171,31.0031,145.48,145.45,7.6313]
[1718469631371,21.0106,145.49,145.46,2.5436]
[1718469631570,7.6295,145.49,145.46,7.6306]
[1718469631981,15.1701,145.53,145.43,32.5442]
[1718469632187,28.4507,145.54,145.49,5.57]
[1718469632403,7.627,145.54,145.51,7.6281]
[1718469633103,2.5424,145.53,145.51,7.6281]
[1718469633283,25.4227,145.54,145.51,7.6281]
[1718469633910,2.5423,145.54,145.52,2.5425]
[1718469634422,15.1701,145.57,145.5,5.57]
[1718469634573,28.4462,145.57,145.54,7.6265]
[1718469634773,2.5419,145.56,145.54,7.6265]
[1718469635477,2.5419,145.56,145.54,2.5422]
[1718469636208,30.988,145.57,145.54,7.6266]
[1718469636907,25.418,145.57,145.54,7.6266]
[1718469637084,13.1955,145.57,145.54,7.6265]
[1718469637285,7.6252,145.57,145.54,5.0844]
[1718469637494,15.2504,145.57,145.54,5.0844]
[1718469637803,2.5419,145.56,145.54,7.6265]
[1718469638008,25.4173,145.57,145.54,7.6265]
[1718469638203,7.6252,145.57,145.55,2.542]
[1718469638519,7.6252,145.57,145.54,5.0844]
[1718469638690,13.1952,145.57,145.54,5.0844]
[1718469638886,2.5419,145.56,145.54,7.6265]
[1718469639478,30.9873,145.57,145.54,7.6265]
[1718469639682,2.5419,145.56,145.54,7.6265]
[1718469639908,30.9873,145.57,145.54,7.6265]
[1718469640110,2.5419,145.56,145.54,7.6265]
[1718469640290,30.9873,145.57,145.54,7.6265]
[1718469640489,20.8204,145.57,145.55,2.542]
[1718469640692,7.6252,145.57,145.55,2.542]
[1718469640998,13.1952,145.57,145.55,2.542]
[1718469641194,8.1118,145.57,145.55,2.542]
[1718469641706,2.5414,145.59,145.53,5.57]
[1718469641887,5.57,145.58,145.57,2.5416]
[1718469642087,22.8715,145.6,145.57,2.5416]
[1718469642302,0.27469,145.62,145.54,5.57]
[1718469642502,12.7052,145.61,145.58,5.083]
[1718469642689,8.1112,145.6,145.58,2.5414]
[1718469642879,8.1112,145.6,145.58,7.6245]
[1718469643504,8.1112,145.6,145.58,2.5414]
[1718469643701,2.5412,145.6,145.58,2.5414]
[1718469643915,8.1112,145.6,145.58,7.6245]
[1718469644310,20.8172,145.6,145.57,7.6248]
[1718469644703,2.5414,145.59,145.57,7.6248]
[1718469645121,28.4409,145.6,145.57,7.6248]